bitfinex/quotes_ETHUSD_20250823
["timestamp","ask_amount","ask_price","bid_price","bid_amount"]
[1755922111466,0.02,4718.8,4718.7,1.61974058]
[1755922111835,0.02,4718.8,4718.7,1.59854831]
[1755922112467,0.02,4718.8,4718.7,2.25854831]
[1755922112969,0.02,4719.8,4718.7,5.20254831]
[1755922113153,0.02,4719.8,4718.8,5.04521251]
[1755922113365,0.02,4719.8,4718.9,0.19838222]
[1755922113552,0.02,4719.8,4719.0,0.66798222]
[1755922113744,0.02,4719.8,4719.1,0.19838222]
[1755922114066,0.02,4719.8,4719.2,0.19838222]
[1755922114369,0.02,4719.8,4719.7,0.2889]
[1755922114543,0.02,4719.8,4719.7,0.48728222]
[1755922114745,0.02,4719.8,4719.7,0.95688222]
[1755922116139,0.0223,4719.8,4719.7,0.19838222]
[1755922117152,0.02,4719.8,4719.7,0.19838222]
[1755922118338,0.02,4719.8,4719.7,0.95688222]
[1755922119076,0.1256,4719.8,4719.7,0.95688222]
[1755922119278,0.1256,4719.8,4719.7,0.48728222]
[1755922119571,0.1256,4719.8,4719.7,0.19801994]
[1755922119974,0.1256,4719.8,4719.7,0.19801265]
[1755922120473,0.1256,4719.8,4719.7,0.95651265]
[1755922120844,0.1256,4719.8,4719.7,1.19111265]
[1755922121943,0.1256,4719.8,4719.7,1.67264274]
[1755922121944,0.022,4719.8,4719.7,1.67264274]
[1755922122200,0.022,4719.8,4719.7,1.77824274]
[1755922122574,0.022,4719.8,4719.7,1.77807155]
[1755922123089,0.022,4719.8,4719.7,2.45925933]
[1755922123250,0.022,4720.8,4719.8,8.14285147]
[1755922123448,0.022,4720.8,4719.9,0.19784146]
[1755922123684,0.1056,4720.7,4720.0,4.37504146]
[1755922123849,0.1056,4720.7,4720.1,0.66744146]
[1755922124047,0.1056,4720.7,4720.2,1.1818582]
[1755922124359,0.1056,4720.7,4720.3,0.21902655]
[1755922124561,0.1056,4720.7,4720.4,0.66744146]
[1755922124757,0.1056,4720.7,4720.5,3.82102565]
[1755922125076,0.43711363,4720.7,4720.6,0.19784146]
[1755922125589,0.53611363,4720.7,4720.6,0.19765001]
[1755922125991,0.43711363,4720.7,4720.6,0.19765001]
[1755922126573,0.53741363,4720.7,4720.6,0.19765001]
[1755922128295,0.2059,4720.7,4720.6,0.19765001]
[1755922128500,0.2059,4720.7,4720.2,3.601]
[1755922128670,0.2059,4720.7,4720.3,0.1977949]
[1755922128866,0.2059,4720.7,4720.4,0.1977949]
[1755922129069,0.1003,4720.7,4720.5,0.1977949]
[1755922129267,0.1003,4720.7,4720.6,0.1977949]
[1755922129469,0.96641515,4720.7,4720.6,0.1977949]
[1755922130803,0.86611515,4720.7,4720.6,0.1977949]
[1755922131018,0.4132,4720.7,4720.6,0.1977949]
[1755922132012,0.1056,4720.7,4720.6,0.1977949]
[1755922135390,0.1056,4720.7,4720.6,0.9601949]
[1755922136089,0.43712295,4720.7,4720.6,0.96026911]
[1755922137388,0.43952295,4720.7,4720.6,0.19786911]
[1755922137888,0.108,4720.7,4720.6,0.19800509]
[1755922138338,0.108,4720.7,4720.6,0.19807933]
[1755922139403,0.43953072,4720.7,4720.6,0.19807933]
[1755922140332,0.67413072,4720.7,4720.6,0.19807933]
[1755922140531,0.57511307,4720.7,4720.6,0.19807933]
[1755922140716,3.35344297,4720.7,4720.6,0.19807933]
[1755922140919,3.68500282,4720.7,4720.6,0.19807933]
[1755922142503,6.68500282,4720.7,4720.6,0.19807933]
[1755922142690,7.14216576,4720.7,4720.6,0.19807933]
[1755922144401,7.1420627,4720.7,4720.6,0.19807933]
[1755922145337,4.1420627,4720.7,4720.6,0.19807933]
[1755922145835,4.1420627,4720.7,4719.1,0.4565]
[1755922145836,2.11851597,4720.3,4719.1,0.4565]
[1755922146036,4.32268979,4720.2,4719.4,0.19808916]
[1755922146326,4.32268979,4720.2,4719.5,0.19808916]
[1755922146532,0.33159877,4720.1,4719.6,0.19808916]
[1755922146732,0.33159877,4720.1,4719.8,0.02]
[1755922146942,0.099,4719.9,4719.8,0.02]
[1755922147099,0.5109141,4719.9,4719.8,0.21807242]
[1755922147434,0.4119141,4719.9,4719.8,0.21807242]
[1755922147732,0.5175141,4719.9,4719.8,0.21807242]
[1755922148502,0.1056,4719.9,4719.8,0.98047242]
[1755922148721,0.022,4720.8,4719.8,0.98047242]
[1755922149039,0.022,4720.8,4719.9,0.19790732]
[1755922149337,2.11842216,4720.5,4720.0,0.19790732]
[1755922149536,3.599,4720.4,4720.1,0.19790732]
[1755922149759,3.599,4720.4,4720.2,0.19790732]
[1755922149901,3.599,4720.4,4720.3,0.19790732]
[1755922150103,4.16800389,4720.4,4720.3,0.19790732]
[1755922151543,4.49958206,4720.4,4720.3,0.19790732]
[1755922152606,4.40388206,4720.4,4720.3,0.19790732]
[1755922153049,4.40388206,4720.4,4720.3,0.50380732]
[1755922153248,4.40388206,4720.4,4720.3,0.96030732]
[1755922153249,0.33157817,4720.4,4720.3,0.96030732]
[1755922153413,5.228,4720.6,4720.3,0.96030732]
[1755922153613,5.228,4720.6,4720.4,0.19790732]
[1755922153924,0.525,4720.5,4719.5,0.63656]
[1755922154111,5.228,4720.6,4720.4,0.3059]
[1755922154307,5.228,4720.6,4720.5,0.19800784]
[1755922154512,5.228,4720.6,4720.5,0.96040784]
[1755922154923,5.228,4720.6,4720.5,0.7624]
[1755922155126,5.78635415,4720.6,4720.5,0.96043347]
[1755922157345,4.15735415,4720.6,4720.5,0.96043347]
[1755922157651,4.4888974,4720.6,4720.5,0.96043347]
[1755922158850,0.43714325,4720.6,4720.5,0.96043347]
[1755922159052,0.1056,4720.6,4720.5,0.96043347]
[1755922159787,0.1076,4720.7,4720.5,0.96043347]
[1755922160053,0.1076,4720.7,4720.6,0.63823347]
[1755922160241,0.1076,4720.7,4720.6,0.94293347]
[1755922160417,0.1076,4720.7,4720.6,0.50273347]
[1755922161047,0.1076,4720.7,4720.6,0.50269421]
[1755922161247,0.1076,4720.7,4720.6,0.94289421]
[1755922162014,0.1076,4720.7,4720.6,0.19799421]
[1755922162649,0.1076,4720.7,4720.6,0.94289421]
[1755922163219,0.43911719,4720.7,4720.6,0.94289421]
[1755922164055,0.43911719,4720.7,4720.6,0.94291227]
[1755922164553,0.43911719,4720.7,4720.6,0.94291023]
[1755922165275,0.1076,4720.7,4720.6,0.94291023]
[1755922169247,0.1076,4720.7,4720.6,0.50271023]
[1755922170082,0.1076,4720.7,4720.6,0.94291023]
[1755922170375,0.1076,4720.7,4720.6,0.94286748]
[1755922171112,0.3928,4720.7,4720.6,0.19796748]
[1755922171288,3.9888,4720.7,4720.6,0.19796748]
[1755922171599,4.55258,4720.7,4720.6,0.19796748]
[1755922173293,4.55258,4720.7,4720.6,0.19808101]
[1755922173699,4.55258,4720.7,4720.6,0.19811005]
[1755922175280,5.21258,4720.7,4720.6,0.19811005]
[1755922175670,7.3309099,4720.7,4720.6,0.19811005]
[1755922178015,10.3309099,4720.7,4720.6,0.19811005]
[1755922178167,10.98638481,4720.7,4720.6,0.19811005]
[1755922178368,2.11866489,4720.0,4719.8,0.001]
[1755922178638,8.15590797,4719.9,4719.8,0.001]
[1755922178809,8.15590797,4719.9,4719.8,0.19932019]
[1755922182296,8.15590797,4719.9,4719.8,0.001]
[1755922182626,8.15590797,4719.9,4719.8,0.19917769]
[1755922183727,4.27700797,4719.9,4719.8,0.19917769]
[1755922183898,5.75431902,4719.9,4719.8,0.19917769]
[1755922184840,0.33159535,4720.0,4719.8,0.94407769]
[1755922185037,0.33159535,4720.0,4719.9,0.63837769]
[1755922185239,0.33159535,4720.0,4719.9,0.94307769]
[1755922185442,3.596,4720.3,4719.9,0.94307769]
[1755922185648,3.596,4720.3,4720.0,0.19817769]
[1755922185803,3.596,4720.3,4720.1,0.19817769]
[1755922186156,3.596,4720.3,4719.8,0.001]
[1755922186157,14.07885147,4720.3,4720.2,0.19817769]
[1755922186338,16.48016088,4720.3,4720.2,0.19817769]
[1755922186538,6.596,4720.3,4720.2,0.19817769]
[1755922187129,8.99970941,4720.3,4720.2,0.19817769]
[1755922189325,2.1184354,4720.5,4720.2,0.19817769]
[1755922189326,1.631,4720.7,4720.2,0.50287769]
[1755922189531,3.0,4720.5,4720.3,0.19817769]
[1755922189741,3.0,4720.5,4720.4,0.19817769]
[1755922190111,3.33156866,4720.5,4720.4,0.19817769]
[1755922190920,0.33156866,4720.5,4720.4,0.19817769]
[1755922191217,2.54898831,4720.5,4720.4,0.19817769]
[1755922191567,2.54898831,4720.5,4720.4,0.19798532]
[1755922192220,3.20898831,4720.5,4720.4,0.19798532]
[1755922194935,3.31458831,4720.5,4720.4,0.19798532]
[1755922196274,0.66,4720.4,4719.8,0.001]
[1755922196480,3.595,4720.3,4719.8,0.001]
[1755922196643,0.1056,4719.9,4719.8,0.001]
[1755922196831,3.595,4719.9,4719.8,0.001]
[1755922197032,0.1056,4719.9,4719.8,0.3098]
[1755922197243,0.1056,4719.9,4719.8,0.7423]
[1755922197441,0.1056,4719.9,4719.8,0.94037086]
[1755922198554,0.1056,4719.9,4719.8,0.7423]
[1755922200172,0.1056,4719.9,4719.8,0.94058651]
[1755922200340,0.1056,4719.9,4719.8,0.19928651]
[1755922200669,0.1056,4719.9,4719.8,0.94058651]
[1755922200848,0.1056,4719.9,4719.8,0.7423]
[1755922201175,0.1056,4719.9,4719.8,0.001]
[1755922201381,0.57286,4719.9,4719.8,0.001]
[1755922201771,3.35154895,4719.9,4719.8,0.001]
[1755922201975,3.68315461,4719.9,4719.8,0.001]
[1755922203161,3.68315461,4719.9,4719.8,0.19934958]
[1755922203468,7.47845039,4719.9,4719.8,0.19934958]
[1755922203667,7.47845039,4719.9,4719.8,0.001]
[1755922204384,8.24071348,4719.9,4719.8,0.001]
[1755922204746,10.47771348,4719.9,4719.8,0.001]
[1755922204947,2.237,4719.7,4719.3,0.001]
[1755922205184,5.01604812,4719.1,4718.8,0.021]
[1755922205495,5.01604812,4719.1,4718.6,0.001]
[1755922205496,8.01622775,4718.7,4718.6,0.001]
[1755922205651,19.10857609,4718.7,4718.6,0.001]
[1755922205863,19.47863609,4718.7,4718.6,0.001]
[1755922206404,5.7795871,4717.9,4716.7,0.4325]
[1755922206556,16.96303857,4717.9,4717.8,0.21852305]
[1755922206757,17.12020929,4717.9,4717.8,0.21852305]
[1755922206981,18.08420882,4717.9,4717.8,0.21852305]
[1755922207284,5.77963203,4717.8,4717.7,1e-08]
[1755922207453,2.78003646,4716.9,4715.8,0.02]
[1755922207784,18.98391427,4716.9,4715.9,0.4325]
[1755922207974,19.15564793,4716.9,4715.9,0.4325]
[1755922208281,19.26204793,4716.9,4715.9,0.4325]
[1755922208787,19.36844757,4716.9,4715.9,0.4325]
[1755922208962,19.36844757,4716.9,4716.1,0.4325]
[1755922209961,19.7002924,4716.9,4716.1,0.4325]
[1755922212773,19.4015924,4716.9,4715.8,0.02]
[1755922212970,1.96084483,4716.9,4716.8,0.7623]
[1755922213294,5.55684483,4716.9,4716.8,0.7623]
[1755922214798,6.21684483,4716.9,4716.8,0.3298]
[1755922215166,6.21684483,4716.9,4716.8,0.7623]
[1755922217298,7.06110389,4716.9,4716.8,0.7623]
[1755922217674,7.06110389,4716.9,4716.8,0.3298]
[1755922217977,7.06110389,4716.9,4716.8,0.021]
[1755922218284,7.06110389,4716.9,4716.8,0.3298]
[1755922218680,7.06110389,4716.9,4716.8,0.7931]
[1755922219600,7.01470389,4716.9,4716.8,0.7931]
[1755922219987,9.13474035,4716.9,4716.8,0.021]
[1755922220495,9.13474035,4716.9,4716.8,0.3202]
[1755922220703,9.13474035,4716.9,4716.8,0.7835]
[1755922221300,7.01470389,4716.9,4716.8,0.98058677]
[1755922223000,7.12110389,4716.9,4716.8,0.98058677]
[1755922224302,9.34044035,4716.9,4716.8,0.21808677]
[1755922224807,14.57974035,4716.9,4716.8,0.21808677]
[1755922225207,22.06259182,4716.9,4716.8,0.21808677]
[1755922226299,22.06259182,4716.9,4716.8,0.021]
[1755922226502,22.06259182,4716.9,4716.8,0.21958712]
[1755922226880,21.73074699,4716.9,4716.8,0.21958798]
[1755922228687,11.90929552,4716.9,4716.8,0.98208798]
[1755922229810,6.78925906,4716.9,4716.8,0.98208798]
[1755922230118,1.689,4716.9,4716.8,0.98208798]
[1755922230723,5.285,4716.9,4716.8,0.98208798]
[1755922232309,3.7024,4716.9,4716.8,0.98208798]
[1755922232510,0.1064,4716.9,4716.8,0.98208798]
[1755922235407,0.1064,4716.9,4716.8,0.021]
[1755922235602,0.68863208,4716.9,4716.8,0.21929878]
[1755922235997,0.68863208,4716.9,4716.8,0.21933196]
[1755922236319,1.35223208,4716.9,4716.8,0.21933196]
[1755922238445,4.94723208,4716.9,4716.8,0.21933196]
[1755922238630,4.94923208,4716.9,4716.8,0.21933196]
[1755922238830,7.06926854,4716.9,4716.8,0.21933196]
[1755922239707,10.86657629,4716.9,4716.8,0.21933196]
[1755922241107,10.52637629,4716.9,4716.8,0.21933196]
[1755922241604,7.26320736,4716.9,4716.8,0.021]
[1755922241903,10.85820736,4716.9,4716.8,0.21951433]
[1755922242308,1.68246315,4716.9,4716.8,0.51871433]
[1755922242539,5.27746315,4716.9,4716.8,0.51871433]
[1755922242703,1.68246315,4716.9,4716.8,0.51871433]
[1755922242908,5.27746315,4716.9,4716.8,0.51871433]
[1755922243144,5.27746315,4716.9,4716.8,0.98201433]
[1755922243324,5.27746315,4716.9,4716.8,0.51871433]
[1755922243325,7.39749961,4716.9,4716.8,0.51871433]
[1755922243507,5.27746315,4716.9,4716.8,0.51871433]
[1755922244625,5.27746315,4716.9,4716.8,0.3202]
[1755922244827,5.27746315,4716.9,4716.8,0.51868272]
[1755922245212,7.39749961,4716.9,4716.8,0.21948272]
[1755922245552,7.49629961,4716.9,4716.8,0.21948272]
[1755922245716,7.49629961,4716.9,4716.8,0.21950336]
[1755922246952,10.49629961,4716.9,4716.8,0.21950336]
[1755922247124,10.95921941,4716.9,4716.8,0.21950336]
[1755922247525,10.62141941,4716.9,4716.8,0.21950336]
[1755922247728,10.16446854,4716.9,4716.8,0.21950336]
[1755922248219,10.62138724,4716.9,4716.8,0.21950336]
[1755922250248,10.95321039,4716.9,4716.8,0.21950336]
[1755922250816,10.95321039,4716.9,4716.8,0.2194594]
[1755922251243,10.49629169,4716.9,4716.8,0.2194594]
[1755922252629,10.39749169,4716.9,4716.8,0.2194594]
[1755922254053,0.002,4716.9,4716.8,0.8086]
[1755922254257,0.002,4717.4,4716.8,1.00700592]
[1755922254420,0.002,4717.4,4716.9,0.19840592]
[1755922254421,3.595,4717.3,4716.9,0.19840592]
[1755922254616,3.595,4717.3,4717.2,0.3141]
[1755922254821,3.595,4717.3,4717.2,0.98600592]
[1755922259461,3.595,4717.3,4717.2,0.51250592]
[1755922259759,3.9549,4717.3,4717.2,0.51250592]
[1755922259929,3.9584,4717.3,4717.2,0.19840592]
[1755922261464,4.6184,4717.3,4717.2,0.19840592]
[1755922262237,4.6184,4717.3,4716.8,0.021]
[1755922262439,4.6184,4717.3,4716.9,0.19824238]
[1755922262770,4.6184,4717.3,4716.8,0.4945]
[1755922263371,4.6184,4717.3,4716.9,0.19825251]
[1755922263571,0.46204,4717.2,4717.0,0.19825251]
[1755922263756,0.46204,4717.2,4717.1,0.19825251]
[1755922264263,0.56764,4717.2,4717.1,0.19825251]
[1755922265233,0.56764,4717.2,4717.1,0.19833018]
[1755922267747,0.57454,4717.2,4717.1,0.19833018]
[1755922268065,4.16164,4717.2,4717.1,0.19833018]
[1755922268474,4.16164,4717.2,4717.1,0.19831552]
[1755922269996,4.44924,4717.2,4717.1,0.19831552]
[1755922270175,5.10924,4717.2,4717.1,0.19831552]
[1755922270465,10.22914163,4717.2,4717.1,0.19831552]
[1755922270634,10.28674163,4717.2,4717.1,0.19831552]
[1755922271535,2.78003646,4716.9,4716.8,0.021]
[1755922271769,8.39573646,4716.9,4716.8,0.21940989]
[1755922271968,8.39573646,4716.9,4716.8,0.021]
[1755922272264,8.39573646,4716.9,4716.8,0.21941341]
[1755922272433,21.06808793,4716.9,4716.8,0.21941341]
[1755922272635,21.8843986,4716.9,4716.8,0.21941341]
[1755922272964,22.3788986,4716.9,4716.8,0.021]
[1755922273166,29.3788986,4716.9,4716.8,0.021]
[1755922273463,29.71074169,4716.9,4716.8,0.021]
[1755922273967,29.65084169,4716.9,4716.8,0.021]
[1755922277491,34.74684169,4716.9,4716.8,0.021]
[1755922277988,27.74684169,4716.9,4716.8,0.021]
[1755922279050,27.74684169,4716.9,4716.8,0.3166]
[1755922279051,8.36865376,4716.9,4716.8,0.3166]
[1755922279284,12.79993646,4716.9,4716.8,0.9502768]
[1755922279472,13.45993646,4716.9,4716.8,0.9502768]
[1755922280008,13.45993646,4716.9,4716.8,0.5147768]
[1755922280660,13.45993646,4716.9,4716.8,0.021]
[1755922280860,13.45993646,4716.9,4716.8,0.21919161]
[1755922282497,13.89815058,4716.9,4716.8,0.21919161]
[1755922283574,11.77811412,4716.9,4716.8,0.21919161]
[1755922283788,11.77811412,4716.9,4716.8,0.21919647]
[1755922284166,13.89815058,4716.9,4716.8,0.21919647]
[1755922285913,7.16421412,4716.9,4716.8,0.95029647]
[1755922286063,5.66221412,4716.9,4716.8,0.95029647]
[1755922286763,5.3304,4716.9,4716.8,0.95029647]
[1755922289990,5.3304,4716.9,4716.8,0.95052202]
[1755922290703,5.3304,4716.9,4716.8,0.9505348]
[1755922293510,5.49175816,4716.9,4716.8,0.9505348]
[1755922297712,9.05894241,4716.9,4716.8,0.2194348]
[1755922297878,6.83990595,4716.9,4716.8,0.2194348]
[1755922298420,8.95994241,4716.9,4716.8,0.2194348]
[1755922299091,6.83990595,4716.9,4716.8,0.2196021]
[1755922299280,8.95994241,4716.9,4716.8,0.2196021]
[1755922300096,9.05894241,4716.9,4716.8,0.2196021]
[1755922301206,9.39075056,4716.9,4716.8,0.2196021]
[1755922301407,7.1717141,4716.9,4716.8,0.2196021]
[1755922301720,9.29175056,4716.9,4716.8,0.2196021]
[1755922302093,9.29075056,4716.9,4716.8,0.2196021]
[1755922302294,7.1707141,4716.9,4716.8,0.51523863]
[1755922302512,7.1707141,4716.9,4716.8,0.95073863]
[1755922302694,9.29075056,4716.9,4716.8,0.51523863]
[1755922302994,7.1707141,4716.9,4716.8,0.21963863]
[1755922303608,9.29075056,4716.9,4716.8,0.21963863]
[1755922303931,9.38975056,4716.9,4716.8,0.21963863]
[1755922304221,7.1707141,4716.9,4716.8,0.21963863]
[1755922304427,7.2697141,4716.9,4716.8,0.21963863]
[1755922304606,9.38975056,4716.9,4716.8,0.21963863]
[1755922306213,9.72945056,4716.9,4716.8,0.21963863]
[1755922306402,9.38975056,4716.9,4716.8,0.21963863]
[1755922306917,9.39175056,4716.9,4716.8,0.21963863]
[1755922307313,2.12516631,4716.9,4716.8,0.51523863]
[1755922307541,2.12516631,4716.9,4716.8,0.95073863]
[1755922307542,1.632,4716.9,4716.8,0.95073863]
[1755922307736,3.7014,4716.9,4716.8,0.95073863]
[1755922307880,0.1064,4716.9,4716.8,0.95073863]
[1755922308416,0.1064,4716.9,4716.8,0.95094993]
[1755922308978,0.1064,4716.9,4716.8,0.95087843]
[1755922309533,0.002,4717.3,4716.8,0.95087843]
[1755922309684,0.002,4717.3,4716.9,1.04215142]
[1755922309885,0.002,4717.3,4717.2,0.3108]
[1755922310090,0.1076,4717.3,4717.2,0.50957843]
[1755922310486,0.1076,4717.3,4717.2,0.97907843]
[1755922311184,4.3596,4717.3,4717.2,0.50957843]
[1755922311489,0.66,4717.2,4716.8,0.021]
[1755922311797,1.63,4717.1,4716.9,0.19847713]
[1755922311984,5.0052,4717.0,4716.8,0.021]
[1755922312185,5.0052,4717.0,4716.9,0.19850859]
[1755922312505,4.5486,4717.0,4716.9,0.19850859]
[1755922313859,4.256,4717.0,4716.9,0.19850859]
[1755922314041,1.63,4717.1,4716.9,0.97880859]
[1755922314211,3.595,4717.0,4716.9,0.3108]
[1755922314512,3.595,4717.0,4716.9,0.50930268]
[1755922314913,3.595,4717.0,4716.9,0.97880268]
[1755922315146,1.63,4717.1,4716.9,0.97880268]
[1755922315356,1.63,4717.1,4717.0,0.19850268]
[1755922315517,5.225,4717.1,4717.0,0.97880268]
[1755922315709,1.63,4717.1,4717.0,0.97880268]
[1755922315910,5.225,4717.1,4717.0,0.97880268]
[1755922316523,0.002,4717.3,4717.0,0.97880268]
[1755922316730,0.002,4717.3,4717.1,0.66800268]
[1755922317051,0.002,4717.3,4717.2,0.50930268]
[1755922317253,0.002,4717.3,4717.2,0.97880268]
[1755922317414,0.002,4717.3,4717.2,0.97872047]
[1755922317952,0.002,4717.3,4717.2,0.97867397]
[1755922320366,0.002,4717.3,4717.2,0.50917397]
[1755922320666,1.92669923,4717.3,4717.2,0.19837397]
[1755922320860,1.7711,4717.3,4717.2,0.19837397]
[1755922321041,3.89095669,4717.3,4717.2,0.19837397]
[1755922321225,3.99655669,4717.3,4717.2,0.19837397]
[1755922321960,1.8767,4717.3,4717.2,0.19837397]
[1755922322122,4.32832474,4717.3,4717.2,0.19837397]
[1755922323656,7.48592924,4717.3,4717.2,0.19837397]
[1755922324667,5.78003646,4716.9,4716.8,0.021]
[1755922324827,12.18074035,4716.9,4716.8,0.021]
[1755922325027,12.63734035,4716.9,4716.8,0.021]
[1755922330866,12.96917917,4716.9,4716.8,0.021]
[1755922331067,6.10510389,4716.9,4716.8,0.21926854]
[1755922331566,6.10510389,4716.9,4716.8,0.53006854]
[1755922331567,5.3294,4716.9,4716.8,0.53006854]
[1755922332374,5.3294,4716.9,4716.8,0.53003057]
[1755922332538,5.9894,4716.9,4716.8,0.53003057]
[1755922333273,5.9894,4716.9,4716.8,0.21923057]
[1755922333436,8.60734047,4716.9,4716.8,0.21923057]
[1755922333641,6.48730401,4716.9,4716.8,0.21923057]
[1755922334972,8.60734047,4716.9,4716.8,0.21923057]
[1755922335436,8.44124047,4716.9,4716.8,0.21923057]
[1755922335634,6.32120401,4716.9,4716.8,0.21923057]
[1755922336155,6.32120401,4716.9,4716.8,0.53003057]
[1755922338272,5.66120401,4716.9,4716.8,0.7783]
[1755922338444,5.66120401,4716.9,4716.8,0.97656164]
[1755922338445,5.3294,4716.9,4716.8,0.97656164]
[1755922338860,5.3294,4716.9,4716.8,0.97656101]
[1755922341366,5.3294,4716.9,4716.8,0.97667343]
[1755922344363,5.3294,4716.9,4716.8,0.97669803]
[1755922345963,1.7364,4716.9,4716.8,0.97669803]
[1755922346272,5.3284,4716.9,4716.8,0.97669803]
[1755922347366,5.3284,4716.9,4716.8,0.97671851]
[1755922347581,1.7364,4716.9,4716.8,0.97671851]
[1755922347773,5.3284,4716.9,4716.8,0.97671851]
[1755922347966,5.3284,4716.9,4716.8,0.97678078]
[1755922348367,0.1064,4716.9,4716.8,0.97678078]
[1755922348570,0.1064,4716.9,4716.8,1.82284401]
[1755922349347,0.002,4717.3,4716.8,1.82284401]
[1755922349547,0.1056,4717.1,4716.9,8.14903261]
[1755922349770,0.1056,4717.1,4717.0,0.94518078]
[1755922350091,0.002,4717.3,4717.0,1.87469033]
[1755922350252,0.002,4717.3,4717.1,0.19848078]
[1755922350454,0.002,4717.3,4717.2,0.49868078]
[1755922350984,0.002,4717.3,4717.2,0.94518078]
[1755922351281,0.002,4717.3,4717.2,1.88303496]
[1755922353373,0.002,4717.3,4717.2,2.00983397]
[1755922353694,0.002,4717.3,4717.2,1.98863496]
[1755922354470,0.002,4717.3,4717.2,2.00983397]
[1755922354679,0.002,4717.3,4717.2,5.66983397]
[1755922354895,0.002,4717.3,4717.2,5.54303496]
[1755922355137,0.002,4717.3,4717.2,5.64863496]
[1755922355277,0.002,4717.7,4717.3,3.66]
[1755922355474,0.002,4717.7,4717.6,7.88865147]
[1755922355693,0.002,4717.7,4717.6,8.08713225]
[1755922355903,0.002,4717.7,4717.6,8.53363225]
[1755922356573,0.002,4717.7,4717.6,8.61753544]
[1755922356788,0.002,4717.7,4717.6,10.06348927]
[1755922357003,0.002,4717.7,4717.6,10.0633955]
[1755922357903,0.002,4717.7,4717.6,13.0633955]
[1755922358892,0.002,4717.7,4717.6,16.6543955]
[1755922359480,0.002,4717.7,4717.6,13.6543955]
[1755922359784,0.002,4717.7,4717.6,13.5487955]
[1755922360318,0.002,4717.7,4717.6,13.4639045]
[1755922362215,0.002,4717.7,4717.6,5.98105303]
[1755922362415,0.002,4717.7,4717.6,4.53490511]
[1755922362634,0.002,4717.7,4717.6,4.55610232]
[1755922362809,0.002,4717.7,4717.6,0.96510232]
[1755922363009,0.002,4717.7,4717.6,4.55510232]
[1755922363207,0.002,4717.7,4717.6,4.53390511]
[1755922363409,0.002,4717.7,4717.6,5.76733798]
[1755922363615,0.002,4717.7,4717.6,5.74614077]
[1755922364309,0.002,4717.7,4717.6,5.85174077]
[1755922364511,0.002,4717.7,4717.6,5.93663577]
[1755922365809,0.002,4717.7,4717.6,8.93667165]
[1755922366427,0.002,4717.7,4717.6,8.93667753]
[1755922372745,0.002,4717.7,4717.6,8.83107753]
[1755922373301,0.002,4717.7,4717.6,8.93667753]
[1755922374628,0.002,4717.7,4717.6,8.73943066]
[1755922374845,0.002,4717.7,4717.6,8.93701346]
[1755922375247,0.002,4717.7,4717.6,8.93700906]
[1755922375634,0.002,4717.7,4717.6,8.9370342]
[1755922376056,0.002,4718.2,4717.7,3.66]
[1755922376358,0.002,4718.3,4718.2,3.66]
[1755922376528,0.002,4718.3,4718.2,7.73500354]
[1755922376921,0.002,4718.3,4718.2,8.20740354]
[1755922377251,0.002,4718.3,4718.2,8.29227754]
[1755922377434,0.002,4718.3,4718.2,10.04325044]
[1755922377824,0.02,4718.8,4718.2,10.04325044]
[1755922378141,0.02,4718.8,4718.6,11.24845147]
[1755922378341,0.02,4718.8,4718.6,15.32345501]
[1755922378524,0.02,4718.8,4718.6,15.79585501]
[1755922378720,0.02,4718.8,4718.6,17.5505378]
[1755922378927,0.02,4718.8,4718.6,17.6354048]
[1755922379350,0.2945,4718.7,4718.6,2.14275333]
[1755922379652,0.7502,4718.7,4718.6,3.97707054]
[1755922379857,0.2945,4718.7,4718.6,3.97707054]
[1755922380353,0.7502,4718.7,4718.6,3.87147054]
[1755922380654,0.7502,4718.7,4718.6,3.78660354]
[1755922380853,0.8558,4718.7,4718.6,3.78660354]
[1755922381235,0.8558,4718.7,4718.6,0.19760354]
[1755922381455,0.8558,4718.7,4718.6,3.78660354]
[1755922382530,0.002,4718.7,4718.6,4.51945556]
[1755922382755,0.002,4718.7,4718.6,4.62505556]
[1755922382965,0.002,4718.7,4718.6,4.42745202]
[1755922383146,0.002,4718.7,4718.6,4.62556991]
[1755922383549,0.002,4718.7,4718.6,4.62556835]
[1755922384545,0.002,4718.7,4718.6,5.09796835]
[1755922385201,0.002,4718.7,4718.6,5.75796835]
[1755922385461,0.02,4718.8,4718.7,0.66]
[1755922385628,0.02,4718.8,4718.7,4.70167061]
[1755922387564,0.002,4719.7,4718.7,7.70167061]
[1755922387763,0.002,4719.7,4719.6,7.48285147]
[1755922387968,0.2945,4719.7,4719.6,11.2689678]
[1755922388171,0.7502,4719.7,4719.6,0.19811633]
[1755922388337,0.8558,4719.7,4719.6,0.19811633]
[1755922388870,0.8558,4719.7,4719.6,3.78611633]
[1755922389585,0.2945,4719.7,4719.6,3.78611633]
[1755922389885,0.7502,4719.7,4719.6,3.78601674]
[1755922390085,0.8558,4719.7,4719.6,3.78601674]
[1755922391693,0.4001,4719.7,4719.6,3.78601674]
[1755922391862,0.8558,4719.7,4719.6,3.78601674]
[1755922392400,0.8558,4719.7,4719.6,3.78606448]
[1755922392899,0.8558,4719.7,4719.6,0.19806448]
[1755922395285,0.4001,4719.7,4719.6,3.78606448]
[1755922396058,0.4001,4719.7,4719.6,4.16678984]
[1755922396059,0.1076,4719.7,4719.6,4.16678984]
[1755922396290,0.1076,4719.7,4719.6,4.45518984]
[1755922396661,0.1076,4719.7,4719.6,4.56278984]
[1755922398092,0.002,4719.7,4719.6,5.05637807]
[1755922398394,0.002,4719.7,4719.6,5.03518984]
[1755922401000,0.002,4719.7,4719.6,0.97478984]
[1755922401165,0.002,4719.7,4719.6,4.56178984]
[1755922401366,0.002,4719.7,4719.6,4.56180927]
[1755922401573,0.002,4719.7,4719.6,4.56181584]
[1755922402103,0.2879,4719.7,4719.6,0.68641584]
[1755922402302,0.2879,4719.7,4719.6,3.89269048]
[1755922402807,0.002,4719.7,4719.6,3.89269048]
[1755922403167,0.2879,4719.7,4719.6,3.89269048]
[1755922403365,0.002,4719.7,4719.6,3.89269048]
[1755922403567,0.002,4719.7,4719.6,5.34620468]